fUSD/lending_fUSD_20260228
["ID","MTS","AMOUNT","RATE_DAILY","PERIOD"]
[406877274,1772261444791,-398.90714608,0.000178,3]
[406877275,1772261444806,-900.0,0.000178,6]
[406877276,1772261444815,-500.0,0.00017808,2]
[406877277,1772261444824,-5000.0,0.00017808,2]
[406877278,1772261444834,-800.0,0.00017808,2]
[406877279,1772261444846,-959.76716989,0.00017816,2]
[406877280,1772261444855,-2822.73754814,0.00017817,2]
[406877281,1772261444865,-10175.40517186,0.0001782,2]
[406877282,1772261444874,-1337.37533821,0.0001782,2]
[406877283,1772261444884,-151.0,0.00017827,2]
[406877284,1772261444895,-500.0,0.00017829,2]
[406877285,1772261444904,-500.0,0.00017829,2]
[406877286,1772261444913,-140156.87642438,0.0001783,2]
[406877287,1772261444923,-283.0,0.00017831,2]
[406877288,1772261444932,-2822.73754814,0.00017833,2]
[406877289,1772261444941,-10175.40517186,0.0001784,2]
[406877290,1772261444950,-283.0,0.00017847,2]
[406877291,1772261444961,-283.0,0.00017848,2]
[406877292,1772261444970,-2822.73754814,0.0001785,2]
[406877293,1772261444980,-9075.94324272,0.0001785,2]
[406877294,1772261444989,-2281.15692049,0.0001785,2]
[406877295,1772261444999,-4353.28431391,0.0001785,2]
[406877296,1772261445009,-25000.0,0.00017856,3]
[406877297,1772261445019,-10175.40517186,0.0001786,2]
[406877298,1772261445029,-500.0,0.00017863,2]
[406877299,1772261445040,-30403.0,0.00017863,2]
[406877300,1772261445050,-25000.0,0.00017865,3]
[406877301,1772261445059,-2822.73754814,0.00017867,2]
[406877302,1772261445068,-283.0,0.00017871,2]
[406877303,1772261445077,-25000.0,0.00017874,3]
[406877304,1772261445086,-283.0,0.00017876,2]
[406877305,1772261445095,-10175.40517186,0.0001788,2]
[406877306,1772261445104,-25000.0,0.00017882,3]
[406877307,1772261445114,-2822.73754814,0.00017883,2]
[406877308,1772261445124,-25000.0,0.00017891,3]
[406877309,1772261445133,-151.0,0.00017897,2]
[406877310,1772261445143,-500.0,0.00017898,2]
[406877311,1772261445152,-1432.9404196,0.00017899,5]
[406877312,1772261445162,-500.0,0.00017899,2]
[406877313,1772261445171,-500.0,0.00017899,2]
[406877314,1772261445180,-500.0,0.00017899,2]
[406877315,1772261445189,-500.0,0.00017899,2]
[406877316,1772261445198,-500.0,0.00017899,2]
[406877317,1772261445208,-500.0,0.00017899,2]
[406877318,1772261445218,-500.0,0.00017899,2]
[406877319,1772261445228,-500.0,0.00017899,2]
[406877320,1772261445238,-500.0,0.00017899,2]
[406877321,1772261445247,-536.88822607,0.00017899,2]
[406877322,1772261445257,-500.0,0.00017899,2]
[406877324,1772261445267,-323.52915924,0.00017899,2]
[406877326,1772261445278,-1000.0,0.000179,2]
[406877330,1772261445408,-1500000.0,0.000179,2]
[406877331,1772261445418,-8280.2759,0.000179,2]
[406877332,1772261445428,-10189.6131,0.000179,2]
[406877333,1772261445438,-150.0,0.000179,2]
[406877335,1772261445448,-25000.0,0.000179,3]
[406877336,1772261445457,-2822.73754814,0.000179,2]
[406877337,1772261445468,-150.0,0.000179,2]
[406877338,1772261445477,-150.0,0.000179,2]
[406877339,1772261445487,-150.0,0.000179,2]
[406877340,1772261445496,-150.0,0.000179,2]
[406877341,1772261445507,-3350.89769703,0.000179,3]
[406877342,1772261445516,-7348.73262382,0.000179,2]
[406877343,1772261445525,-150.0,0.000179,2]
[406877344,1772261445537,-900.0,0.000179,6]
[406877345,1772261445547,-12999.66583485,0.000179,2]
[406877346,1772261445557,-150.0,0.000179,2]
[406877347,1772261445567,-9075.94324272,0.000179,2]
[406877348,1772261445577,-2281.15692049,0.000179,2]
[406877349,1772261445587,-959.76716989,0.000179,2]
[406877350,1772261445597,-10175.40517186,0.000179,2]
[406877351,1772261445606,-4353.28431391,0.000179,2]
[406877352,1772261445616,-668.68,0.000179,2]
[406877353,1772261445625,-500.0,0.00017918,2]
[406877354,1772261445635,-243.78913034,0.00017972,2]
[406877355,1772261445644,-150.0,0.00017973,2]
[406877356,1772261445653,-150.0,0.00017973,2]
[406877357,1772261445664,-1337.37533821,0.00017979,2]
[406877358,1772261445673,-372.998721,0.00017981,2]
[406877359,1772261445683,-500.0,0.00017982,2]
[406877360,1772261445692,-227.79036117,0.00017982,2]
[406877361,1772261445702,-151.0,0.00017986,2]
[406877362,1772261445712,-340750.0512957,0.00017989,2]
[406877363,1772261445722,-12782.7983894,0.00017989,2]
[406877364,1772261445731,-10222.6307981,0.00017989,2]
[406877365,1772261445741,-318733.2393857,0.00017989,2]
[406877366,1772261445751,-627.5922248,0.00017989,2]
[406877367,1772261445761,-1337.37533821,0.0001799,2]
[406877368,1772261445772,-249.3060658,0.00017997,2]
[406877369,1772261445784,-300.0,0.00017999,2]
[406877370,1772261445793,-300.0,0.00017999,2]
[406877371,1772261445805,-300.0,0.00017999,2]
[406877372,1772261445814,-292.6907697,0.00017999,2]
[406877373,1772261445827,-300.0,0.00017999,2]
[406877374,1772261445836,-195.66587194,0.00017999,2]
[406877375,1772261445847,-224.27040434,0.00018,2]
[406877376,1772261445856,-619004.11177889,0.00018,2]
[406877384,1772261445984,-709060.23070642,0.00018,2]
[406877386,1772261445995,-843.99999996,0.00018,2]
[406877388,1772261446006,-1583.16365206,0.00018,2]
[406877390,1772261446017,-4478.00151961,0.00018,2]
[406877393,1772261446038,-18722.78875595,0.00018,2]
[406877395,1772261446049,-64000.00000003,0.00018,2]
[406877398,1772261446079,-7610169.72489359,0.00018,2]
[406877399,1772261446089,-3169.05038666,0.00018,2]
[406877400,1772261446099,-150733.83952371,0.00018,2]
[406877401,1772261446110,-1282.32650474,0.00018,2]
[406877402,1772261446122,-2205.71495633,0.00018,2]
[406877403,1772261446141,-3200.0,0.00018,2]
[406877404,1772261446152,-1155.05778425,0.00018,2]
[406877405,1772261446170,-1234.85897229,0.00018,2]
[406877406,1772261446181,-606.23261478,0.00018,2]
[406877407,1772261446192,-260.38998424,0.00018,2]
[406877410,1772261446216,-471.4963907,0.00018,2]
[406877413,1772261446291,-2655.48248449,0.00012773,2]
[406877414,1772261446300,-398.90714607,0.0001785,3]
[406877416,1772261446311,-12903.70580035,0.00018,2]
[406877417,1772261446322,-7881.15727807,0.00018,2]
[406877418,1772261446335,-635.29206536,0.00018,2]
[406877419,1772261446417,-854.26943993,0.00018,2]
[406877420,1772261446429,-88494.13233623,0.00018,2]
[406877421,1772261446441,-74831.20667683,0.00018,2]
[406877422,1772261446452,-34751.35544955,0.00018,2]
[406877423,1772261446464,-324.53058927,0.00018,2]
[406877424,1772261446524,-604.85183302,0.00018,2]
[406877425,1772261446542,-755.25713044,0.00018,2]
[406877426,1772261446554,-64266.55027738,0.00018,2]
[406877427,1772261446582,-2764.35405547,0.00018,2]
[406877428,1772261446594,-25971.00390948,0.00018,2]
[406877429,1772261446606,-70368.47806538,0.00018,2]
[406877430,1772261446617,-13069.7,0.00018,2]
[406877431,1772261446633,-17806.8007418,0.00018,2]
[406877432,1772261446645,-400.06476587,0.00018,2]
[406877433,1772261446665,-398.90714607,0.000179,3]
[406877434,1772261446674,-99.67960417,0.00018,2]
[406877435,1772261446690,-880.1149993,0.00018,2]
[406877436,1772261951791,155.91,0.00017,120]
[406877437,1772262003452,450.0,8.5e-05,7]
[406877439,1772262048253,9399.89,7e-05,2]
[406877440,1772262048276,10000.01,7e-05,2]
[406877441,1772262048297,4341.42701764,7e-05,2]
[406877448,1772262492491,-150.0,0.00013,15]
[406877453,1772262605249,-150.0,0.00013,15]
[406877454,1772262613060,331.89784875,0.00013,30]
[406877463,1772262631677,-450.0,8.5e-05,2]
[406877466,1772262631686,-287.8276,8.5e-05,2]
[406877470,1772262631696,-96.93116838,8.6e-05,2]
[406877473,1772262631707,-126599.99999997,8.6e-05,2]
[406877474,1772262631751,-1131.66823526,8.6e-05,2]
[406877475,1772262631763,-1544.22667553,8.6e-05,2]
[406877476,1772262631774,-644.71052742,8.6e-05,2]
[406877477,1772262631814,-2214.77332447,8.6e-05,2]
[406877478,1772262631825,-253.91423836,8.6e-05,2]
[406877479,1772262631837,-866.40166702,8.6e-05,2]
[406877480,1772262631847,-7630.68,8.6e-05,2]
[406877481,1772262631858,-751.80579281,8.6e-05,2]
[406877482,1772262631869,-51551.14731956,8.6e-05,2]
[406877527,1772262637735,-1050.0,8.6e-05,2]
[406877528,1772262637747,-237779.39865122,8.6e-05,2]
[406877529,1772262637756,-2247.92454066,8.6e-05,2]
[406877530,1772262637767,-962.77871013,8.6e-05,2]
[406877531,1772262637776,-500.0,8.673e-05,2]
[406877533,1772262637786,-163.0840927,8.673e-05,2]
[406877535,1772262637795,-226.38041342,8.673e-05,2]
[406877536,1772262637804,-500.0,8.673e-05,2]
[406877538,1772262637813,-502.24115013,8.673e-05,2]
[406877540,1772262637822,-500.0,8.673e-05,2]
[406877541,1772262637831,-500.30851718,8.673e-05,2]
[406877542,1772262637841,-500.0,8.673e-05,2]
[406877543,1772262637850,-341.60788349,8.673e-05,2]
[406877544,1772262637859,-501.72819961,8.673e-05,2]
[406877545,1772262637868,-500.0,8.673e-05,2]
[406877546,1772262637878,-493.67205134,8.673e-05,2]
[406877547,1772262637887,-500.0,8.673e-05,2]
[406877548,1772262637896,-500.0,8.673e-05,2]
[406877549,1772262637905,-501.59993335,8.673e-05,2]
[406877550,1772262637914,-500.0,8.673e-05,2]
[406877551,1772262637924,-500.0,8.673e-05,2]
[406877552,1772262637933,-500.43690086,8.673e-05,2]
[406877553,1772262637943,-500.0,8.673e-05,2]
[406877554,1772262637952,-503.06902733,8.673e-05,2]
[406877555,1772262637961,-500.0,8.673e-05,2]
[406877556,1772262637971,-500.67601232,8.673e-05,2]
[406877557,1772262637981,-500.0,8.673e-05,2]
[406877559,1772262637990,-500.0,8.673e-05,2]
[406877560,1772262637999,-500.0,8.673e-05,2]
[406877561,1772262638009,-164.6207651,8.673e-05,2]
[406877562,1772262638018,-501.05665714,8.673e-05,2]
[406877563,1772262638027,-500.0,8.673e-05,2]
[406877564,1772262638036,-159.91,9.4e-05,2]
[406877565,1772262638045,-32888.5933,9.44e-05,2]
[406877567,1772262638054,-8280.2759,9.44e-05,2]
[406877569,1772262638063,-28510.8566828,9.95e-05,2]
[406877571,1772262638072,-1967.55744025,0.0001,2]
[406877573,1772262638081,-174.0245362,0.0001,2]
[406877575,1772262638090,-3294.85947554,0.00010119,2]
[406877577,1772262638099,-299.99,0.00010119,2]
[406877579,1772262638109,-150.99,0.00010119,2]
[406877581,1772262638118,-999.99,0.00010119,2]
[406877583,1772262638127,-160.67,0.000109,2]
[406877585,1772262638136,-9999.99,0.000109,2]
[406877587,1772262638145,-1659.67655285,0.000109,2]
[406877589,1772262638154,-1659.6765528,0.000109,2]
[406877591,1772262638163,-9461.11215015,0.00011,2]
[406877593,1772262638173,-1174.21295138,0.00011099,2]
[406877595,1772262638182,-1174.21295131,0.00011099,2]
[406877597,1772262638191,-1174.21295131,0.00011099,2]
[406877599,1772262638200,-1659.6765528,0.00011186,2]
[406877601,1772262638210,-250.0,0.00011231,2]
[406877603,1772262638219,-1174.21295131,0.00011633,2]
[406877605,1772262638228,-416.7453968,0.00011653,2]
[406877607,1772262638237,-286.0,0.00011653,2]
[406877609,1772262638246,-223.0,0.00012278,2]
[406877611,1772262638256,-249.0,0.00012302,2]
[406877613,1772262638264,-1452.0,0.00012492,2]
[406877615,1772262638274,-592.0,0.00012517,2]
[406877617,1772262638283,-1659.6765528,0.00012529,2]
[406877619,1772262638292,-1325.37,0.00012548,2]
[406877621,1772262638301,-1174.21295131,0.00012678,2]
[406877623,1772262638310,-456.97377821,0.00013,15]
[406877625,1772262638320,-2877.42,0.00013056,2]
[406877627,1772262638329,-500.0,0.00013333,2]
[406877629,1772262638339,-3240.0,0.00013425,2]
[406877631,1772262638349,-22856.52778514,0.0001358,2]
[406877633,1772262638358,-1317.37,0.00013671,14]
[406877635,1772262638368,-500.0,0.00013698,2]
[406877637,1772262638378,-500.0,0.00013698,2]
[406877639,1772262638387,-483.13999169,0.00013698,2]
[406877641,1772262638396,-553.53,0.00013698,2]
[406877643,1772262638406,-500.0,0.00013698,2]
[406877645,1772262638416,-500.0,0.00013698,2]
[406877647,1772262638426,-500.0,0.00013698,2]
[406877649,1772262638440,-500.0,0.00013698,2]
[406877651,1772262638450,-500.0,0.00013698,2]
[406877653,1772262638460,-529.72247796,0.00013698,2]
[406877655,1772262638471,-200.0,0.00013699,2]
[406877657,1772262638480,-500.0,0.00013699,2]
[406877658,1772262638491,-500.0,0.00013699,2]
[406877661,1772262638500,-500.0,0.00013699,2]
[406877662,1772262638512,-279.65230115,0.00013699,2]
[406877663,1772262638523,-500.0,0.00013699,2]
[406877664,1772262638532,-163.84904206,0.00013699,2]
[406877666,1772262638544,-500.0,0.00013699,2]
[406877668,1772262638554,-621.2419277,0.00013699,2]
[406877669,1772262638563,-177.13044364,0.00013699,2]
[406877670,1772262638572,-430.58615362,0.00013699,2]
[406877671,1772262638582,-247.77184833,0.00013699,2]
[406877672,1772262638591,-500.0,0.00013699,2]
[406877673,1772262638601,-500.0,0.00013699,2]
[406877674,1772262638611,-500.0,0.00013699,2]
[406877675,1772262638620,-524.57437487,0.00013699,2]
[406877676,1772262638629,-162.16281507,0.00013699,2]
[406877677,1772262638639,-500.0,0.00013699,2]
[406877678,1772262638648,-500.0,0.00013699,2]
[406877679,1772262638657,-500.0,0.00013699,2]
[406877680,1772262638666,-500.0,0.00013699,2]
[406877681,1772262638675,-205.11520705,0.00013699,2]
[406877682,1772262638685,-500.0,0.00013699,2]
[406877683,1772262638694,-500.0,0.00013699,2]
[406877684,1772262638703,-500.0,0.00013699,2]
[406877685,1772262638712,-500.0,0.00013699,2]
[406877686,1772262638721,-500.0,0.00013699,2]
[406877687,1772262638730,-500.0,0.00013699,2]
[406877688,1772262638740,-500.0,0.00013699,2]
[406877689,1772262638749,-500.0,0.00013699,2]
[406877690,1772262638758,-1299.96658348,0.00013722,2]
[406877691,1772262638767,-1659.6765528,0.00013871,2]
[406877692,1772262638776,-350.47,0.00014013,2]
[406877693,1772262638785,-513.0,0.0001411,2]
[406877694,1772262638794,-500.0,0.00014246,2]
[406877695,1772262638804,-509.56822593,0.00014247,2]
[406877696,1772262638814,-1000.0,0.00014247,2]
[406877697,1772262638823,-1000.0,0.00014247,2]
[406877698,1772262638833,-1000.0,0.00014247,2]
[406877699,1772262638842,-1000.0,0.00014247,2]
[406877700,1772262638851,-1000.0,0.00014247,2]
[406877701,1772262638861,-1012.5028717,0.00014247,2]
[406877702,1772262638870,-776.97407445,0.00014247,2]
[406877703,1772262638880,-301.08254131,0.00014247,2]
[406877704,1772262638890,-1000.0,0.00014247,2]
[406877705,1772262638899,-1000.0,0.00014247,2]
[406877706,1772262638909,-1000.0,0.00014247,2]
[406877707,1772262638918,-1000.0,0.00014247,2]
[406877708,1772262638928,-1000.0,0.00014247,2]
[406877709,1772262638937,-1000.0,0.00014247,2]
[406877710,1772262638946,-553.53,0.00014383,2]
[406877711,1772262638955,-500.0,0.00014383,2]
[406877712,1772262638964,-500.0,0.00014383,2]
[406877713,1772262638974,-500.0,0.00014383,2]
[406877714,1772262638983,-500.0,0.00014383,2]
[406877715,1772262638993,-595.16967246,0.00014383,2]
[406877716,1772262639003,-1299.96658348,0.00014767,2]
[406877717,1772262639012,-1500.0,0.00014795,2]
[406877718,1772262639021,-1500.0,0.00014795,2]
[406877719,1772262639030,-216.9791158,0.00014795,2]
[406877720,1772262639039,-1500.0,0.00014795,2]
[406877721,1772262639049,-1500.0,0.00014795,2]
[406877722,1772262639058,-1500.0,0.00014795,2]
[406877723,1772262639068,-1500.0,0.00014795,2]
[406877724,1772262639076,-169.43046208,0.000149,2]
[406877725,1772262639086,-250.0,0.00015,2]
[406877726,1772262639095,-4000.0,0.00015104,2]
[406877727,1772262639104,-186.17,0.00015141,2]
[406877728,1772262639113,-1659.6765528,0.00015214,2]
[406877729,1772262639123,-150.0,0.00015215,2]
[406877730,1772262639132,-500.0,0.00015292,2]
[406877731,1772262639142,-1555.75,0.0001531,2]
[406877732,1772262639151,-517.58422612,0.00015342,2]
[406877733,1772262639160,-2000.0,0.00015342,2]
[406877734,1772262639169,-1030.40923373,0.00015342,2]
[406877735,1772262639179,-2000.0,0.00015342,2]
[406877736,1772262639189,-2000.0,0.00015342,2]
[406877737,1772262639198,-1479.36214283,0.00015342,2]
[406877738,1772262639207,-4000.0,0.00015482,2]
[406877739,1772262639217,-405.406349,0.00015533,7]
[406877740,1772262639227,-1299.96658348,0.00015811,2]
[406877741,1772262639236,-4000.0,0.00015859,2]
[406877742,1772262639246,-2500.0,0.0001589,2]
[406877743,1772262639256,-2487.0338117,0.0001589,2]
[406877744,1772262639265,-2526.23779749,0.0001589,2]
[406877745,1772262639275,-500.0,0.00015903,2]
[406877746,1772262639285,-170.0,0.00016,2]
[406877747,1772262639296,-1015.21,0.00016,3]
[406877748,1772262639306,-9999.99,0.00016116,2]
[406877749,1772262639315,-5000.00872795,0.000162,5]
[406877750,1772262639326,-174.04581251,0.00016218,2]
[406877751,1772262639335,-160.0,0.00016218,2]
[406877752,1772262639344,-4000.0,0.00016237,2]
[406877753,1772262639353,-553.53,0.00016436,2]
[406877754,1772262639363,-500.0,0.00016436,2]
[406877755,1772262639372,-500.0,0.00016436,2]
[406877756,1772262639383,-500.0,0.00016436,2]
[406877757,1772262639393,-500.0,0.00016436,2]
[406877758,1772262639403,-266.81662109,0.00016438,2]
[406877759,1772262639413,-228.15,0.00016438,2]
[406877760,1772262639422,-1295.1037872,0.00016438,2]
[406877761,1772262639433,-1659.6765528,0.00016557,2]
[406877762,1772262639444,-4000.0,0.00016614,2]
[406877763,1772262639454,-167.13,0.00016712,2]
[406877764,1772262639463,-1299.96658348,0.00016856,2]
[406877766,1772262639473,-1852.42,0.00016876,2]
[406877768,1772262639482,-5000.0,0.000169,2]
[406877769,1772262639493,-495.53730802,0.00016998,2]
[406877770,1772262639503,-575.1906533,0.00016999,2]
[406877771,1772262639512,-575.1906533,0.00016999,2]
[406877772,1772262639523,-575.1906533,0.00016999,2]
[406877773,1772262639540,-575.1906533,0.00016999,2]
[406877774,1772262639550,-575.1906533,0.00016999,2]
[406877775,1772262639559,-575.1906533,0.00016999,2]
[406877776,1772262639569,-575.1906533,0.00016999,2]
[406877777,1772262639578,-575.1906533,0.00016999,2]
[406877778,1772262639587,-575.1906533,0.00016999,2]
[406877779,1772262639597,-575.1906533,0.00016999,2]
[406877780,1772262639607,-575.1906533,0.00016999,2]
[406877781,1772262639616,-575.1906533,0.00016999,2]
[406877783,1772262639625,-575.1906533,0.00016999,2]
[406877785,1772262639635,-575.1906533,0.00016999,2]
[406877787,1772262639644,-575.1906533,0.00016999,2]
[406877788,1772262639654,-575.1906533,0.00016999,2]
[406877789,1772262639663,-575.1906533,0.00016999,2]
[406877790,1772262639672,-575.1906533,0.00016999,2]
[406877791,1772262639681,-575.1906533,0.00016999,2]
[406877792,1772262639690,-575.1906533,0.00016999,2]
[406877793,1772262639700,-575.1906533,0.00016999,2]
[406877794,1772262639709,-575.1906533,0.00016999,2]
[406877795,1772262639718,-575.1906533,0.00016999,2]
[406877796,1772262639728,-575.1906533,0.00016999,2]
[406877797,1772262639738,-575.1906533,0.00016999,2]
[406877798,1772262639747,-575.1906533,0.00016999,2]
[406877799,1772262639756,-575.1906533,0.00016999,2]
[406877800,1772262639765,-575.1906533,0.00016999,2]
[406877801,1772262639774,-575.1906533,0.00016999,2]
[406877802,1772262639783,-575.1906533,0.00016999,2]
[406877803,1772262639792,-575.1906533,0.00016999,2]
[406877804,1772262639806,-575.1906533,0.00016999,2]
[406877805,1772262639815,-575.1906533,0.00016999,2]
[406877806,1772262639825,-575.1906533,0.00016999,2]
[406877807,1772262639835,-575.1906533,0.00016999,2]
[406877808,1772262639845,-575.1906533,0.00016999,2]
[406877809,1772262639854,-575.1906533,0.00016999,2]
[406877810,1772262639863,-575.1906533,0.00016999,2]
[406877811,1772262639873,-575.1906533,0.00016999,2]
[406877812,1772262639882,-575.1906533,0.00016999,2]
[406877813,1772262639892,-575.1906533,0.00016999,2]
[406877814,1772262639902,-575.1906533,0.00016999,2]
[406877815,1772262639911,-575.1906533,0.00016999,2]
[406877816,1772262639921,-575.1906533,0.00016999,2]
[406877817,1772262639931,-575.1906533,0.00016999,2]
[406877818,1772262639940,-575.1906533,0.00016999,2]
[406877819,1772262639950,-575.1906533,0.00016999,2]
[406877820,1772262639959,-575.1906533,0.00016999,2]
[406877821,1772262639968,-575.1906533,0.00016999,2]
[406877822,1772262639978,-575.1906533,0.00016999,2]
[406877823,1772262639987,-575.1906533,0.00016999,2]
[406877824,1772262639997,-600.46194489,0.00016999,2]
[406877825,1772262640007,-600.46194489,0.00016999,2]
[406877826,1772262640016,-600.46194489,0.00016999,2]
[406877827,1772262640025,-600.46194489,0.00016999,2]
[406877828,1772262640035,-600.46194489,0.00016999,2]
[406877829,1772262640044,-600.46194489,0.00016999,2]
[406877830,1772262640054,-600.46194489,0.00016999,2]
[406877831,1772262640063,-600.46194489,0.00016999,2]
[406877832,1772262640073,-600.46194489,0.00016999,2]
[406877833,1772262640082,-600.46194489,0.00016999,2]
[406877834,1772262640091,-600.46194489,0.00016999,2]
[406877835,1772262640101,-600.46194489,0.00016999,2]
[406877836,1772262640111,-600.46194489,0.00016999,2]
[406877837,1772262640120,-600.46194489,0.00016999,2]
[406877838,1772262640130,-600.46194489,0.00016999,2]
[406877839,1772262640140,-600.46194489,0.00016999,2]
[406877840,1772262640149,-600.46194489,0.00016999,2]
[406877841,1772262640159,-600.46194489,0.00016999,2]
[406877842,1772262640168,-600.46194489,0.00016999,2]
[406877843,1772262640177,-600.46194489,0.00016999,2]
[406877844,1772262640187,-600.46194489,0.00016999,2]
[406877845,1772262640196,-600.46194489,0.00016999,2]
[406877846,1772262640205,-600.46194489,0.00016999,2]
[406877847,1772262640215,-600.46194489,0.00016999,2]
[406877848,1772262640224,-600.46194489,0.00016999,2]
[406877849,1772262640234,-600.46194489,0.00016999,2]
[406877850,1772262640243,-600.46194489,0.00016999,2]
[406877851,1772262640252,-600.46194489,0.00016999,2]
[406877852,1772262640262,-600.46194489,0.00016999,2]
[406877853,1772262640272,-707.97243611,0.00016999,2]
[406877854,1772262640282,-707.97243611,0.00016999,2]
[406877855,1772262640291,-707.97243611,0.00016999,2]
[406877856,1772262640300,-707.97243611,0.00016999,2]
[406877857,1772262640310,-707.97243611,0.00016999,2]
[406877858,1772262640319,-707.97243611,0.00016999,2]
[406877859,1772262640328,-707.97243611,0.00016999,2]
[406877860,1772262640338,-300.0,0.00017,2]
[406877861,1772262640347,-147513.0296702,0.00017,2]
[406877862,1772262640356,-500.0,0.00017,5]
[406877863,1772262640365,-228.53277993,0.00017,2]
[406877864,1772262640375,-168.0,0.00017061,2]
[406877865,1772262640385,-402.22264821,0.000171,2]
[406877866,1772262640394,-196.36177182,0.000171,2]
[406877867,1772262640404,-353.45118927,0.000171,2]
[406877868,1772262640413,-308.99,0.00017163,2]
[406877869,1772262640423,-168.0,0.00017209,2]
[406877870,1772262640438,-168.0,0.00017318,2]
[406877871,1772262640449,-87342.0,0.000174,2]
[406877872,1772262640459,-292.0,0.00017484,2]
[406877873,1772262640468,-336.0,0.00017493,2]
[406877874,1772262640478,-694.42441671,0.000175,3]
[406877875,1772262640488,-1160.725,0.000175,2]
[406877876,1772262640498,-152.614,0.000175,2]
[406877877,1772262640507,-5616.53495309,0.000175,3]
[406877878,1772262640520,-168.0,0.00017519,2]
[406877879,1772262640530,-350.0,0.00017524,2]
[406877881,1772262640540,-350.0,0.00017539,2]
[406877883,1772262640549,-200.15445162,0.00017556,2]
[406877885,1772262640559,-350.0,0.00017568,2]
[406877887,1772262640568,-336.0,0.00017584,2]
[406877889,1772262640577,-1295.0,0.00017589,2]
[406877891,1772262640592,-1044.8869118,0.0001764,2]
[406877893,1772262640607,-1000.16999502,0.0001764,2]
[406877896,1772262640617,-1106.37660848,0.0001764,2]
[406877899,1772262640626,-1012.8726318,0.0001764,2]
[406877901,1772262640636,-1072.49638635,0.0001764,2]
[406877903,1772262640646,-1118.04512499,0.0001764,2]
[406877905,1772262640655,-1005.00894096,0.0001764,2]
[406877907,1772262640664,-1115.74758185,0.0001764,2]
[406877909,1772262640673,-1111.82424905,0.0001764,2]
[406877911,1772262640682,-1118.41790936,0.0001764,2]
[406877913,1772262640691,-1040.63836572,0.0001764,2]
[406877915,1772262640700,-1025.08793562,0.0001764,2]
[406877917,1772262640710,-1014.33790277,0.0001764,2]
[406877919,1772262640719,-1072.31415359,0.0001764,2]
[406877921,1772262640728,-1131.52041567,0.0001764,2]
[406877923,1772262640738,-1039.79544703,0.0001764,2]
[406877925,1772262640748,-1057.54326462,0.0001764,2]
[406877927,1772262640757,-1107.54442961,0.0001764,2]
[406877928,1772262640766,-1076.17001692,0.0001764,2]
[406877930,1772262640901,-1149.39382631,0.0001764,2]
[406877931,1772262640911,-1007.17811611,0.0001764,2]
[406877932,1772262640920,-1079.46169801,0.0001764,2]
[406877933,1772262640929,-1095.6926772,0.0001764,2]
[406877934,1772262640943,-1261.3298479,0.0001764,2]
[406877935,1772262640953,-1295.0,0.00017644,2]
[406877936,1772262640962,-336.0,0.00017695,2]
[406877937,1772262640972,-1295.0,0.00017699,2]
[406877938,1772262640981,-350.0,0.00017708,2]
[406877939,1772262640992,-336.0,0.00017733,2]
[406877940,1772262641002,-350.0,0.00017752,2]
[406877941,1772262641011,-1295.0,0.00017753,2]
[406877942,1772262641021,-350.0,0.00017756,2]
[406877943,1772262641032,-336.0,0.00017774,2]
[406877944,1772262641042,-500.0,0.00017808,2]
[406877945,1772262641051,-1295.0,0.00017808,2]
[406877946,1772262641062,-800.0,0.00017808,2]
[406877947,1772262641071,-668.68,0.00017808,2]
[406877948,1772262641081,-500.0,0.00017829,2]
[406877949,1772262641091,-553.53,0.00017829,2]
[406877950,1772262641101,-500.0,0.00017829,2]
[406877951,1772262641111,-364.47,0.00017829,2]
[406877952,1772262641120,-500.0,0.00017829,2]
[406877953,1772262641130,-497.70153186,0.00017829,2]
[406877954,1772262641140,-500.0,0.00017829,2]
[406877955,1772262641150,-500.0,0.00017863,2]